[Event "Titled Tuesday Blitz August 08 Early 2023"]
[White "Jovic, Stanoje"]
[Black "Aslanov, Umid"]
[WhiteFideId "905020"]
[BlackFideId "13412620"]
[WhiteElo "2495"]
[BlackElo "2588"]
[Result "0-1"]
[Round "8"]
[TimeControl "180+1"]
[Date "2023.08.08"]
[WhiteClock "0:00:00"]
[BlackClock "0:00:06"]
[Board "108"]

1. c4 {[%clk 0:03:00]}  e6 {[%clk 0:02:59]} 2. g3 {[%clk 0:03:01]}  d5 {[%clk 0:03:00]} 3. Bg2 {[%clk 0:03:01]}  Nf6 {[%clk 0:03:00]} 4. Nf3 {[%clk 0:03:01]}  dxc4 {[%clk 0:03:00]} 5. O-O {[%clk 0:03:01]}  c5 {[%clk 0:03:00]} 6. Na3 {[%clk 0:03:01]}  Nc6 {[%clk 0:03:00]} 7. Nxc4 {[%clk 0:03:01]}  Be7 {[%clk 0:03:00]} 8. b3 {[%clk 0:03:01]}  O-O {[%clk 0:03:00]} 9. Bb2 {[%clk 0:03:02]}  a6 {[%clk 0:02:59]} 10. Rc1 {[%clk 0:03:01]}  b5 {[%clk 0:02:58]} 11. Nce5 {[%clk 0:03:01]}  Bb7 {[%clk 0:02:58]} 12. Nxc6 {[%clk 0:02:53]}  Bxc6 {[%clk 0:02:58]} 13. Qc2 {[%clk 0:02:51]}  h6 {[%clk 0:02:53]} 14. Ng5 {[%clk 0:02:31]}  Bxg2 {[%clk 0:02:47]} 15. Bxf6 {[%clk 0:02:31]}  hxg5 {[%clk 0:02:47]} 16. Bxe7 {[%clk 0:02:28]}  Qxe7 {[%clk 0:02:46]} 17. Kxg2 {[%clk 0:02:28]}  Rac8 {[%clk 0:02:46]} 18. Qe4 {[%clk 0:02:23]}  Rfd8 {[%clk 0:02:40]} 19. d3 {[%clk 0:02:19]}  Rd5 {[%clk 0:02:33]} 20. Rc2 {[%clk 0:02:15]}  Rc6 {[%clk 0:01:54]} 21. Rfc1 {[%clk 0:02:13]}  Qc7 {[%clk 0:01:55]} 22. b4 {[%clk 0:02:06]}  Re5 {[%clk 0:01:13]} 23. Qf3 {[%clk 0:01:59]}  c4 {[%clk 0:01:12]} 24. dxc4 {[%clk 0:01:55]}  bxc4 {[%clk 0:01:12]} 25. a3 {[%clk 0:01:39]}  a5 {[%clk 0:01:07]} 26. b5 {[%clk 0:01:34]}  Rxb5 {[%clk 0:01:03]} 27. Qg4 {[%clk 0:01:31]}  Qb7 {[%clk 0:00:54]} 28. f3 {[%clk 0:01:28]}  Rb2 {[%clk 0:00:44]} 29. Qxg5 {[%clk 0:01:23]}  Rxc2 {[%clk 0:00:44]} 30. Rxc2 {[%clk 0:01:20]}  Qc7 {[%clk 0:00:25]} 31. Rc3 {[%clk 0:01:13]}  a4 {[%clk 0:00:22]} 32. h4 {[%clk 0:01:10]}  Rb6 {[%clk 0:00:20]} 33. h5 {[%clk 0:00:59]}  Rb3 {[%clk 0:00:15]} 34. Qe3 {[%clk 0:00:38]}  Rxc3 {[%clk 0:00:14]} 35. Qxc3 {[%clk 0:00:38]}  Qc5 {[%clk 0:00:12]} 36. g4 {[%clk 0:00:25]}  Qb5 {[%clk 0:00:12]} 37. Qd4 {[%clk 0:00:13]}  Qd5 {[%clk 0:00:12]} 38. Qc3 {[%clk 0:00:11]}  f6 {[%clk 0:00:10]} 39. h6 {[%clk 0:00:10]}  Kh7 {[%clk 0:00:08]} 40. hxg7 {[%clk 0:00:10]}  Kxg7 {[%clk 0:00:09]} 41. Kf2 {[%clk 0:00:07]}  Qc5+ {[%clk 0:00:08]} 42. e3 {[%clk 0:00:04]}  e5 {[%clk 0:00:09]} 43. Kg3 {[%clk 0:00:02]}  Kf7 {[%clk 0:00:08]} 44. Qc2 {[%clk 0:00:02]}  Ke6 {[%clk 0:00:05]} 45. Qf5+ {[%clk 0:00:01]}  Ke7 {[%clk 0:00:06]} 46. Qh7+ {[%clk 0:00:00]}  Kd6 {[%clk 0:00:06]} 0-1


[Site "https://www.chess.com"]

[Event "Titled Tuesday Blitz August 08 Early 2023"]
[White "SmirnovAlexandrA"]
[Black "Khamdamova, Afruza"]
[BlackFideId "14210444"]
[WhiteElo "2584"]
[BlackElo "2481"]
[Result "1-0"]
[Round "8"]
[TimeControl "180+1"]
[Date "2023.08.08"]
[WhiteClock "0:00:52"]
[BlackClock "0:00:03"]
[Board "109"]

1. e4 {[%clk 0:03:00]}  e5 {[%clk 0:02:59]} 2. d4 {[%clk 0:02:57]}  exd4 {[%clk 0:02:59]} 3. Qxd4 {[%clk 0:02:58]}  Nc6 {[%clk 0:02:59]} 4. Qe3 {[%clk 0:02:58]}  Nf6 {[%clk 0:02:57]} 5. Nc3 {[%clk 0:02:58]}  Bb4 {[%clk 0:02:57]} 6. Bd2 {[%clk 0:02:55]}  d6 {[%clk 0:02:55]} 7. O-O-O {[%clk 0:02:55]}  O-O {[%clk 0:02:55]} 8. Qg3 {[%clk 0:02:55]}  Kh8 {[%clk 0:02:31]} 9. h4 {[%clk 0:02:51]}  Be6 {[%clk 0:02:26]} 10. f3 {[%clk 0:02:50]}  Ne5 {[%clk 0:02:18]} 11. h5 {[%clk 0:02:50]}  h6 {[%clk 0:02:18]} 12. Nge2 {[%clk 0:02:46]}  Nc4 {[%clk 0:02:17]} 13. a3 {[%clk 0:02:37]}  Bc5 {[%clk 0:02:14]} 14. Bf4 {[%clk 0:02:35]}  c6 {[%clk 0:02:07]} 15. Nd4 {[%clk 0:02:33]}  Qb6 {[%clk 0:02:05]} 16. Bxc4 {[%clk 0:02:25]}  Bxc4 {[%clk 0:02:01]} 17. Na4 {[%clk 0:02:22]}  Qa5 {[%clk 0:01:42]} 18. Nxc5 {[%clk 0:02:21]}  dxc5 {[%clk 0:01:29]} 19. Nf5 {[%clk 0:02:21]}  Rg8 {[%clk 0:01:29]} 20. Rd6 {[%clk 0:01:54]}  Be6 {[%clk 0:01:24]} 21. Ne7 {[%clk 0:01:49]}  Rge8 {[%clk 0:01:18]} 22. Ng6+ {[%clk 0:01:42]}  fxg6 {[%clk 0:01:14]} 23. hxg6 {[%clk 0:01:43]}  Ng8 {[%clk 0:01:12]} 24. Be5 {[%clk 0:01:35]}  c4 {[%clk 0:01:08]} 25. Qg5 {[%clk 0:01:19]}  Qc7 {[%clk 0:00:17]} 26. Rxh6+ {[%clk 0:01:15]}  Nxh6 {[%clk 0:00:17]} 27. Qxh6+ {[%clk 0:01:16]}  Kg8 {[%clk 0:00:17]} 28. Qh7+ {[%clk 0:01:04]}  Kf8 {[%clk 0:00:17]} 29. Qh8+ {[%clk 0:01:05]}  Bg8 {[%clk 0:00:17]} 30. Bxg7+ {[%clk 0:00:52]}  Qxg7 {[%clk 0:00:03]} 31. Rf6+ {[%clk 0:00:52]} 1-0


[Site "https://www.chess.com"]

[Event "Titled Tuesday Blitz August 08 Early 2023"]
[White "Shuvalov, Evgenij"]
[Black "Borgaonkar Akshay"]
[WhiteFideId "4187237"]
[BlackFideId "25639110"]
[WhiteElo "2480"]
[BlackElo "2581"]
[Result "0-1"]
[Round "8"]
[TimeControl "180+1"]
[Date "2023.08.08"]
[WhiteClock "0:00:15"]
[BlackClock "0:00:11"]
[Board "110"]

1. d4 {[%clk 0:02:55]}  Nf6 {[%clk 0:02:59]} 2. c4 {[%clk 0:02:54]}  g6 {[%clk 0:02:59]} 3. Nc3 {[%clk 0:02:54]}  Bg7 {[%clk 0:02:59]} 4. e4 {[%clk 0:02:54]}  O-O {[%clk 0:02:59]} 5. Nf3 {[%clk 0:02:54]}  d6 {[%clk 0:02:59]} 6. Be2 {[%clk 0:02:55]}  e5 {[%clk 0:02:58]} 7. O-O {[%clk 0:02:55]}  Nc6 {[%clk 0:02:59]} 8. d5 {[%clk 0:02:55]}  Ne7 {[%clk 0:02:59]} 9. Ne1 {[%clk 0:02:55]}  Nd7 {[%clk 0:02:56]} 10. f3 {[%clk 0:02:56]}  f5 {[%clk 0:02:57]} 11. g4 {[%clk 0:02:57]}  f4 {[%clk 0:02:45]} 12. h4 {[%clk 0:02:56]}  a5 {[%clk 0:02:13]} 13. Rf2 {[%clk 0:02:53]}  Nc5 {[%clk 0:02:09]} 14. Rh2 {[%clk 0:02:53]}  c6 {[%clk 0:02:02]} 15. Nd3 {[%clk 0:02:51]}  Nxd3 {[%clk 0:02:01]} 16. Bxd3 {[%clk 0:02:49]}  c5 {[%clk 0:01:52]} 17. Bc2 {[%clk 0:02:32]}  Bd7 {[%clk 0:01:45]} 18. Ba4 {[%clk 0:02:32]}  Nc8 {[%clk 0:01:46]} 19. Bxd7 {[%clk 0:02:31]}  Qxd7 {[%clk 0:01:46]} 20. Nb5 {[%clk 0:02:24]}  Na7 {[%clk 0:01:46]} 21. a4 {[%clk 0:02:22]}  Nxb5 {[%clk 0:01:45]} 22. axb5 {[%clk 0:02:23]}  b6 {[%clk 0:01:46]} 23. b3 {[%clk 0:02:20]}  Bf6 {[%clk 0:01:42]} 24. Bd2 {[%clk 0:02:19]}  Qd8 {[%clk 0:01:37]} 25. Qe1 {[%clk 0:02:17]}  Kf7 {[%clk 0:01:36]} 26. Bc3 {[%clk 0:02:16]}  Ke8 {[%clk 0:01:21]} 27. Kf1 {[%clk 0:02:16]}  Kd7 {[%clk 0:01:21]} 28. Ke2 {[%clk 0:02:16]}  Kc7 {[%clk 0:01:21]} 29. Kd3 {[%clk 0:02:16]}  Kb7 {[%clk 0:01:21]} 30. h5 {[%clk 0:02:11]}  g5 {[%clk 0:01:20]} 31. Rha2 {[%clk 0:02:10]}  Qc7 {[%clk 0:01:16]} 32. Ra4 {[%clk 0:02:04]}  Rfb8 {[%clk 0:01:03]} 33. R1a2 {[%clk 0:02:04]}  Kc8 {[%clk 0:01:01]} 34. Qa1 {[%clk 0:02:03]}  Kd7 {[%clk 0:00:59]} 35. b4 {[%clk 0:01:51]}  cxb4 {[%clk 0:00:58]} 36. Bxb4 {[%clk 0:01:52]}  Rc8 {[%clk 0:00:56]} 37. Ba3 {[%clk 0:01:45]}  Ke8 {[%clk 0:00:51]} 38. h6 {[%clk 0:01:41]}  Kf7 {[%clk 0:00:48]} 39. Qh1 {[%clk 0:01:41]}  Kg8 {[%clk 0:00:47]} 40. Rc2 {[%clk 0:01:39]}  Qd7 {[%clk 0:00:40]} 41. Qh5 {[%clk 0:01:37]}  Be7 {[%clk 0:00:36]} 42. Bb2 {[%clk 0:01:30]}  Qe8 {[%clk 0:00:35]} 43. Qh2 {[%clk 0:01:19]}  Qg6 {[%clk 0:00:32]} 44. Bc3 {[%clk 0:01:17]}  Bf8 {[%clk 0:00:30]} 45. Be1 {[%clk 0:01:13]}  Qxh6 {[%clk 0:00:28]} 46. Qg1 {[%clk 0:01:13]}  Qh3 {[%clk 0:00:24]} 47. Ke2 {[%clk 0:01:10]}  Rab8 {[%clk 0:00:21]} 48. Bf2 {[%clk 0:01:10]}  Be7 {[%clk 0:00:14]} 49. Bxb6 {[%clk 0:01:07]}  h5 {[%clk 0:00:06]} 50. Ba7 {[%clk 0:00:57]}  Rxb5 {[%clk 0:00:06]} 51. gxh5 {[%clk 0:00:51]}  Qxh5 {[%clk 0:00:04]} 52. Bf2 {[%clk 0:00:45]}  Rb3 {[%clk 0:00:04]} 53. Qg4 {[%clk 0:00:43]}  Qxg4 {[%clk 0:00:03]} 54. fxg4 {[%clk 0:00:44]}  f3+ {[%clk 0:00:03]} 55. Kd2 {[%clk 0:00:43]}  Bd8 {[%clk 0:00:04]} 56. Rc3 {[%clk 0:00:41]}  Rb2+ {[%clk 0:00:03]} 57. Rc2 {[%clk 0:00:39]}  Rcb8 {[%clk 0:00:02]} 58. c5 {[%clk 0:00:36]}  dxc5 {[%clk 0:00:02]} 59. Bxc5 {[%clk 0:00:35]}  Rxc2+ {[%clk 0:00:03]} 60. Kxc2 {[%clk 0:00:35]}  Rc8 {[%clk 0:00:03]} 61. Rc4 {[%clk 0:00:36]}  f2 {[%clk 0:00:04]} 62. Bxf2 {[%clk 0:00:34]}  Rxc4+ {[%clk 0:00:04]} 63. Kd3 {[%clk 0:00:34]}  Rc8 {[%clk 0:00:05]} 64. Be3 {[%clk 0:00:33]}  a4 {[%clk 0:00:06]} 65. Bd2 {[%clk 0:00:30]}  a3 {[%clk 0:00:06]} 66. Bc3 {[%clk 0:00:31]}  a2 {[%clk 0:00:06]} 67. Bxe5 {[%clk 0:00:31]}  Kf7 {[%clk 0:00:05]} 68. Bb2 {[%clk 0:00:30]}  Rb8 {[%clk 0:00:03]} 69. Kc2 {[%clk 0:00:30]}  Bc7 {[%clk 0:00:02]} 70. e5 {[%clk 0:00:29]}  Rb4 {[%clk 0:00:02]} 71. e6+ {[%clk 0:00:24]}  Ke8 {[%clk 0:00:02]} 72. Kc3 {[%clk 0:00:19]}  Rxg4 {[%clk 0:00:02]} 73. Kb3 {[%clk 0:00:19]}  Be5 {[%clk 0:00:03]} 74. Bxe5 {[%clk 0:00:17]}  Re4 {[%clk 0:00:03]} 75. Bf6 {[%clk 0:00:15]}  g4 {[%clk 0:00:02]} 76. Kxa2 {[%clk 0:00:14]}  g3 {[%clk 0:00:03]} 77. d6 {[%clk 0:00:12]}  Rxe6 {[%clk 0:00:02]} 78. Bd4 {[%clk 0:00:12]}  g2 {[%clk 0:00:03]} 79. Kb3 {[%clk 0:00:11]}  Kd7 {[%clk 0:00:04]} 80. Bc5 {[%clk 0:00:11]}  Re1 {[%clk 0:00:04]} 81. Kc2 {[%clk 0:00:11]}  g1=Q {[%clk 0:00:05]} 82. Bxg1 {[%clk 0:00:12]}  Rxg1 {[%clk 0:00:06]} 83. Kd2 {[%clk 0:00:13]}  Rg2+ {[%clk 0:00:07]} 84. Ke3 {[%clk 0:00:13]}  Rg6 {[%clk 0:00:08]} 85. Kf3 {[%clk 0:00:14]}  Rxd6 {[%clk 0:00:08]} 86. Kf4 {[%clk 0:00:15]}  Re6 {[%clk 0:00:09]} 87. Kf5 {[%clk 0:00:16]}  Ke7 {[%clk 0:00:10]} 88. Kf4 {[%clk 0:00:16]}  Kf7 {[%clk 0:00:11]} 89. Kg4 {[%clk 0:00:15]}  Re5 {[%clk 0:00:11]} 0-1


[Site "https://www.chess.com"]

[Event "Titled Tuesday Blitz August 08 Early 2023"]
[White "Santos Flores, Alberto"]
[Black "Toktomushev, Teimur"]
[WhiteFideId "3601234"]
[BlackFideId "14176726"]
[WhiteElo "2559"]
[BlackElo "2428"]
[Result "1-0"]
[Round "8"]
[TimeControl "180+1"]
[Date "2023.08.08"]
[WhiteClock "0:00:37"]
[BlackClock "0:00:00"]
[Board "112"]

1. e4 {[%clk 0:03:00]}  c5 {[%clk 0:02:54]} 2. Nf3 {[%clk 0:03:00]}  e6 {[%clk 0:02:50]} 3. g3 {[%clk 0:03:00]}  d5 {[%clk 0:02:45]} 4. exd5 {[%clk 0:03:01]}  exd5 {[%clk 0:02:46]} 5. d4 {[%clk 0:03:01]}  cxd4 {[%clk 0:02:45]} 6. Nxd4 {[%clk 0:03:00]}  Nc6 {[%clk 0:02:44]} 7. Bg2 {[%clk 0:03:01]}  Bc5 {[%clk 0:02:30]} 8. c3 {[%clk 0:02:49]}  Nxd4 {[%clk 0:02:06]} 9. cxd4 {[%clk 0:02:49]}  Qe7+ {[%clk 0:01:52]} 10. Be3 {[%clk 0:02:48]}  Bb4+ {[%clk 0:01:53]} 11. Nc3 {[%clk 0:02:48]}  Nf6 {[%clk 0:01:53]} 12. O-O {[%clk 0:02:48]}  O-O {[%clk 0:01:49]} 13. Nxd5 {[%clk 0:02:43]}  Nxd5 {[%clk 0:01:49]} 14. Bxd5 {[%clk 0:02:44]}  Bh3 {[%clk 0:01:46]} 15. Bg2 {[%clk 0:02:42]}  Bxg2 {[%clk 0:01:46]} 16. Kxg2 {[%clk 0:02:43]}  Rfd8 {[%clk 0:01:46]} 17. Qf3 {[%clk 0:02:39]}  Rac8 {[%clk 0:01:41]} 18. Rac1 {[%clk 0:02:38]}  h6 {[%clk 0:01:41]} 19. h4 {[%clk 0:02:33]}  Ba5 {[%clk 0:01:39]} 20. Rfd1 {[%clk 0:02:29]}  Bb6 {[%clk 0:01:34]} 21. Rxc8 {[%clk 0:02:24]}  Rxc8 {[%clk 0:01:35]} 22. Qg4 {[%clk 0:02:24]}  Rd8 {[%clk 0:01:06]} 23. Bxh6 {[%clk 0:02:19]}  f5 {[%clk 0:01:05]} 24. Qg5 {[%clk 0:01:29]}  Qxg5 {[%clk 0:01:04]} 25. Bxg5 {[%clk 0:01:28]}  Rxd4 {[%clk 0:01:03]} 26. Rxd4 {[%clk 0:01:26]}  Bxd4 {[%clk 0:01:04]} 27. b3 {[%clk 0:01:25]}  a6 {[%clk 0:01:05]} 28. Be3 {[%clk 0:01:20]}  Be5 {[%clk 0:01:00]} 29. h5 {[%clk 0:01:17]}  Kh7 {[%clk 0:00:30]} 30. f3 {[%clk 0:01:16]}  g6 {[%clk 0:00:30]} 31. g4 {[%clk 0:01:10]}  fxg4 {[%clk 0:00:27]} 32. fxg4 {[%clk 0:01:10]}  gxh5 {[%clk 0:00:27]} 33. gxh5 {[%clk 0:01:11]}  b5 {[%clk 0:00:04]} 34. Kf3 {[%clk 0:01:09]}  a5 {[%clk 0:00:04]} 35. Ke4 {[%clk 0:01:09]}  Bg7 {[%clk 0:00:02]} 36. Kd5 {[%clk 0:00:37]}  a4 {[%clk 0:00:03]} 37. b4 {[%clk 0:00:37]}  Bc3 {[%clk 0:00:00]} 38. Kc5 {[%clk 0:00:37]} 1-0


[Site "https://www.chess.com"]

[Event "Titled Tuesday Blitz August 08 Early 2023"]
[White "Moral Garcia, Serafin"]
[Black "Ncatt"]
[WhiteFideId "2201925"]
[WhiteElo "2545"]
[BlackElo "2348"]
[Result "1-0"]
[Round "8"]
[TimeControl "180+1"]
[Date "2023.08.08"]
[WhiteClock "0:00:46"]
[BlackClock "0:00:07"]
[Board "116"]

1. c4 {[%clk 0:03:00]}  c6 {[%clk 0:02:59]} 2. e4 {[%clk 0:03:00]}  d5 {[%clk 0:03:00]} 3. exd5 {[%clk 0:03:01]}  cxd5 {[%clk 0:03:00]} 4. d4 {[%clk 0:03:01]}  Nf6 {[%clk 0:03:00]} 5. Nc3 {[%clk 0:03:02]}  Nc6 {[%clk 0:02:59]} 6. Bg5 {[%clk 0:03:01]}  e6 {[%clk 0:02:49]} 7. Nf3 {[%clk 0:03:00]}  Be7 {[%clk 0:02:47]} 8. c5 {[%clk 0:03:00]}  O-O {[%clk 0:02:43]} 9. Bb5 {[%clk 0:02:59]}  Bd7 {[%clk 0:02:41]} 10. O-O {[%clk 0:02:57]}  a5 {[%clk 0:02:38]} 11. a3 {[%clk 0:02:53]}  Rc8 {[%clk 0:02:20]} 12. Qa4 {[%clk 0:02:42]}  h6 {[%clk 0:02:16]} 13. Bh4 {[%clk 0:02:42]}  Re8 {[%clk 0:02:05]} 14. b4 {[%clk 0:02:41]}  axb4 {[%clk 0:02:02]} 15. axb4 {[%clk 0:02:40]}  Ne4 {[%clk 0:02:01]} 16. Bxe7 {[%clk 0:02:38]}  Qxe7 {[%clk 0:01:51]} 17. Qc2 {[%clk 0:02:26]}  Nxb4 {[%clk 0:01:45]} 18. Qb3 {[%clk 0:02:26]}  Nxc3 {[%clk 0:01:38]} 19. Bxd7 {[%clk 0:02:25]}  Ne2+ {[%clk 0:01:27]} 20. Kh1 {[%clk 0:02:25]}  Qxd7 {[%clk 0:01:27]} 21. Qxb4 {[%clk 0:02:25]}  Nf4 {[%clk 0:01:20]} 22. Ra7 {[%clk 0:02:24]}  Rb8 {[%clk 0:01:17]} 23. Rb1 {[%clk 0:02:23]}  e5 {[%clk 0:00:54]} 24. Nxe5 {[%clk 0:02:10]}  Qf5 {[%clk 0:00:51]} 25. Rxb7 {[%clk 0:01:33]}  Qe4 {[%clk 0:00:50]} 26. Rg1 {[%clk 0:01:23]}  Ra8 {[%clk 0:00:43]} 27. f3 {[%clk 0:01:16]}  Qe2 {[%clk 0:00:28]} 28. Qe1 {[%clk 0:01:04]}  Qc2 {[%clk 0:00:17]} 29. Rxf7 {[%clk 0:01:00]}  Ra2 {[%clk 0:00:16]} 30. Rxf4 {[%clk 0:00:58]}  Rea8 {[%clk 0:00:13]} 31. h4 {[%clk 0:00:56]}  Qb2 {[%clk 0:00:13]} 32. Qg3 {[%clk 0:00:55]}  Ra1 {[%clk 0:00:12]} 33. Rf7 {[%clk 0:00:51]}  Rxg1+ {[%clk 0:00:11]} 34. Kxg1 {[%clk 0:00:52]}  Ra1+ {[%clk 0:00:10]} 35. Kh2 {[%clk 0:00:52]}  g5 {[%clk 0:00:09]} 36. hxg5 {[%clk 0:00:52]}  Rh1+ {[%clk 0:00:07]} 37. Kxh1 {[%clk 0:00:52]}  Qa1+ {[%clk 0:00:07]} 38. Kh2 {[%clk 0:00:52]}  h5 {[%clk 0:00:08]} 39. Qf4 {[%clk 0:00:51]}  Qxd4 {[%clk 0:00:07]} 40. Qxd4 {[%clk 0:00:50]}  h4 {[%clk 0:00:07]} 41. Qb4 {[%clk 0:00:46]}  h3 {[%clk 0:00:07]} 42. Qb8# {[%clk 0:00:46]} 1-0


[Site "https://www.chess.com"]

[Event "Titled Tuesday Blitz August 08 Early 2023"]
[White "Jahnz, Fabian"]
[Black "ArtemDyachuk"]
[WhiteFideId "4653300"]
[WhiteElo "2332"]
[BlackElo "2539"]
[Result "1/2-1/2"]
[Round "8"]
[TimeControl "180+1"]
[Date "2023.08.08"]
[WhiteClock "0:00:34"]
[BlackClock "0:01:19"]
[Board "117"]

1. e4 {[%clk 0:03:00]}  c6 {[%clk 0:02:59]} 2. Nf3 {[%clk 0:02:59]}  d5 {[%clk 0:02:59]} 3. Nc3 {[%clk 0:02:59]}  dxe4 {[%clk 0:02:59]} 4. Nxe4 {[%clk 0:03:00]}  Nd7 {[%clk 0:02:59]} 5. Qe2 {[%clk 0:02:54]}  e6 {[%clk 0:02:57]} 6. g3 {[%clk 0:02:52]}  Be7 {[%clk 0:02:55]} 7. Bg2 {[%clk 0:02:52]}  Ngf6 {[%clk 0:02:54]} 8. Nxf6+ {[%clk 0:02:50]}  Nxf6 {[%clk 0:02:55]} 9. O-O {[%clk 0:02:51]}  O-O {[%clk 0:02:55]} 10. d4 {[%clk 0:02:51]}  c5 {[%clk 0:02:55]} 11. c3 {[%clk 0:02:50]}  Qb6 {[%clk 0:02:52]} 12. a4 {[%clk 0:02:44]}  Bd7 {[%clk 0:02:48]} 13. a5 {[%clk 0:02:34]}  Qb5 {[%clk 0:02:44]} 14. Qxb5 {[%clk 0:02:33]}  Bxb5 {[%clk 0:02:45]} 15. Re1 {[%clk 0:02:33]}  Ba6 {[%clk 0:02:42]} 16. Be3 {[%clk 0:02:27]}  Rac8 {[%clk 0:02:37]} 17. h3 {[%clk 0:02:22]}  Rfd8 {[%clk 0:02:36]} 18. Rad1 {[%clk 0:02:06]}  Nd5 {[%clk 0:02:31]} 19. dxc5 {[%clk 0:01:53]}  Nxe3 {[%clk 0:02:30]} 20. Rxd8+ {[%clk 0:01:52]}  Rxd8 {[%clk 0:02:30]} 21. Rxe3 {[%clk 0:01:51]}  Bxc5 {[%clk 0:02:29]} 22. Re1 {[%clk 0:01:46]}  Kf8 {[%clk 0:02:28]} 23. b4 {[%clk 0:01:46]}  Be7 {[%clk 0:02:28]} 24. Nd4 {[%clk 0:01:18]}  Bf6 {[%clk 0:01:47]} 25. b5 {[%clk 0:00:52]}  Bxd4 {[%clk 0:01:45]} 26. bxa6 {[%clk 0:00:45]}  Bxc3 {[%clk 0:01:45]} 27. Rc1 {[%clk 0:00:45]}  Bd2 {[%clk 0:01:44]} 28. Rc7 {[%clk 0:00:43]}  bxa6 {[%clk 0:01:43]} 29. Rxa7 {[%clk 0:00:41]}  Bxa5 {[%clk 0:01:42]} 30. Rxa6 {[%clk 0:00:40]}  Bc3 {[%clk 0:01:41]} 31. Ra8 {[%clk 0:00:40]}  Rxa8 {[%clk 0:01:36]} 32. Bxa8 {[%clk 0:00:40]}  Ke7 {[%clk 0:01:37]} 33. Bf3 {[%clk 0:00:39]}  Bd4 {[%clk 0:01:37]} 34. Kg2 {[%clk 0:00:40]}  h6 {[%clk 0:01:37]} 35. Be4 {[%clk 0:00:40]}  Kd6 {[%clk 0:01:36]} 36. f4 {[%clk 0:00:40]}  Kc5 {[%clk 0:01:34]} 37. Kf3 {[%clk 0:00:40]}  Bf6 {[%clk 0:01:32]} 38. Bc2 {[%clk 0:00:39]}  Kd4 {[%clk 0:01:32]} 39. g4 {[%clk 0:00:37]}  Be7 {[%clk 0:01:30]} 40. Bb1 {[%clk 0:00:34]}  Kc3 {[%clk 0:01:27]} 41. Be4 {[%clk 0:00:34]}  Kd2 {[%clk 0:01:27]} 42. Bc6 {[%clk 0:00:33]}  Ke1 {[%clk 0:01:21]} 43. Be8 {[%clk 0:00:32]}  f6 {[%clk 0:01:21]} 44. Bf7 {[%clk 0:00:32]}  e5 {[%clk 0:01:21]} 45. fxe5 {[%clk 0:00:33]}  fxe5 {[%clk 0:01:21]} 46. Ke4 {[%clk 0:00:31]}  Bf6 {[%clk 0:01:21]} 47. h4 {[%clk 0:00:29]}  Bxh4 {[%clk 0:01:07]} 48. Kxe5 {[%clk 0:00:26]}  Bf6+ {[%clk 0:01:08]} 49. Kf5 {[%clk 0:00:27]}  Kf2 {[%clk 0:01:09]} 50. Bh5 {[%clk 0:00:27]}  Kg3 {[%clk 0:01:09]} 51. Bg6 {[%clk 0:00:27]}  Kh4 {[%clk 0:01:09]} 52. Bh5 {[%clk 0:00:27]}  Bc3 {[%clk 0:01:08]} 53. Bg6 {[%clk 0:00:27]}  Bb2 {[%clk 0:01:08]} 54. Bh5 {[%clk 0:00:27]}  Bc1 {[%clk 0:01:09]} 55. Bg6 {[%clk 0:00:27]}  Bg5 {[%clk 0:01:10]} 56. Bh5 {[%clk 0:00:28]}  Bc1 {[%clk 0:01:11]} 57. Bg6 {[%clk 0:00:29]}  Bg5 {[%clk 0:01:12]} 58. Bh5 {[%clk 0:00:29]}  Kg3 {[%clk 0:01:12]} 59. Bg6 {[%clk 0:00:29]}  Kf3 {[%clk 0:01:13]} 60. Bh5 {[%clk 0:00:30]}  Ke3 {[%clk 0:01:14]} 61. Bg6 {[%clk 0:00:31]}  Kd3 {[%clk 0:01:15]} 62. Bh5 {[%clk 0:00:31]}  Kd4 {[%clk 0:01:16]} 63. Bg6 {[%clk 0:00:32]}  Kd5 {[%clk 0:01:16]} 64. Bh5 {[%clk 0:00:33]}  Kd4 {[%clk 0:01:17]} 65. Bg6 {[%clk 0:00:33]}  Kd5 {[%clk 0:01:18]} 66. Bh5 {[%clk 0:00:34]}  Kd4 {[%clk 0:01:19]} 1/2-1/2


[Site "https://www.chess.com"]

[Event "Titled Tuesday Blitz August 08 Early 2023"]
[White "Berezin, Viktor"]
[Black "Preobrazhenska_D2011"]
[WhiteFideId "14107872"]
[WhiteElo "2529"]
[BlackElo "2274"]
[Result "0-1"]
[Round "8"]
[TimeControl "180+1"]
[Date "2023.08.08"]
[WhiteClock "0:00:05"]
[BlackClock "0:00:17"]
[Board "118"]

1. d4 {[%clk 0:03:00]}  Nf6 {[%clk 0:03:00]} 2. Nf3 {[%clk 0:03:00]}  b6 {[%clk 0:02:58]} 3. g3 {[%clk 0:03:00]}  e6 {[%clk 0:02:54]} 4. Bg2 {[%clk 0:03:00]}  d5 {[%clk 0:02:55]} 5. O-O {[%clk 0:03:01]}  Be7 {[%clk 0:02:55]} 6. c4 {[%clk 0:03:01]}  c6 {[%clk 0:02:55]} 7. b3 {[%clk 0:02:59]}  O-O {[%clk 0:02:55]} 8. Bb2 {[%clk 0:02:59]}  Bb7 {[%clk 0:02:54]} 9. Qc2 {[%clk 0:03:00]}  c5 {[%clk 0:02:53]} 10. cxd5 {[%clk 0:02:56]}  exd5 {[%clk 0:02:47]} 11. Nc3 {[%clk 0:02:49]}  Nc6 {[%clk 0:02:37]} 12. Rad1 {[%clk 0:02:49]}  cxd4 {[%clk 0:02:31]} 13. Nxd4 {[%clk 0:02:47]}  Nxd4 {[%clk 0:02:22]} 14. Rxd4 {[%clk 0:02:48]}  Bc5 {[%clk 0:02:23]} 15. Rh4 {[%clk 0:02:39]}  h6 {[%clk 0:02:01]} 16. Rd1 {[%clk 0:02:16]}  Qc7 {[%clk 0:01:50]} 17. e3 {[%clk 0:02:02]}  Rad8 {[%clk 0:01:22]} 18. Nb5 {[%clk 0:01:57]}  Qe7 {[%clk 0:01:19]} 19. Nd4 {[%clk 0:01:54]}  Bxd4 {[%clk 0:01:10]} 20. Bxd4 {[%clk 0:01:49]}  Ne4 {[%clk 0:01:01]} 21. Rg4 {[%clk 0:01:37]}  g6 {[%clk 0:00:53]} 22. Qb2 {[%clk 0:01:37]}  h5 {[%clk 0:00:42]} 23. Bh8 {[%clk 0:01:06]}  f6 {[%clk 0:00:33]} 24. Rxg6+ {[%clk 0:00:48]}  Kxh8 {[%clk 0:00:33]} 25. Qe2 {[%clk 0:00:45]}  Qh7 {[%clk 0:00:29]} 26. Bxe4 {[%clk 0:00:30]}  dxe4 {[%clk 0:00:30]} 27. Rxd8 {[%clk 0:00:30]}  Rxd8 {[%clk 0:00:31]} 28. Rxf6 {[%clk 0:00:31]}  Rc8 {[%clk 0:00:22]} 29. Kg2 {[%clk 0:00:30]}  h4 {[%clk 0:00:18]} 30. Rf4 {[%clk 0:00:05]}  h3+ {[%clk 0:00:17]} 0-1


[Site "https://www.chess.com"]

[Event "Titled Tuesday Blitz August 08 Early 2023"]
[White "Palczert, Matyas"]
[Black "Tharushi, T H D Niklesha"]
[WhiteFideId "784958"]
[BlackFideId "9918264"]
[WhiteElo "2525"]
[BlackElo "2086"]
[Result "1-0"]
[Round "8"]
[TimeControl "180+1"]
[Date "2023.08.08"]
[WhiteClock "0:02:45"]
[BlackClock "0:02:06"]
[Board "119"]

1. e4 {[%clk 0:03:00]}  c5 {[%clk 0:02:58]} 2. Nf3 {[%clk 0:03:00]}  d6 {[%clk 0:02:58]} 3. d4 {[%clk 0:03:00]}  cxd4 {[%clk 0:02:58]} 4. Nxd4 {[%clk 0:03:00]}  Nf6 {[%clk 0:02:57]} 5. Nc3 {[%clk 0:03:01]}  g6 {[%clk 0:02:55]} 6. Be3 {[%clk 0:03:00]}  Bg7 {[%clk 0:02:56]} 7. f3 {[%clk 0:03:00]}  O-O {[%clk 0:02:55]} 8. Qd2 {[%clk 0:03:00]}  Nc6 {[%clk 0:02:55]} 9. O-O-O {[%clk 0:02:57]}  d5 {[%clk 0:02:55]} 10. Kb1 {[%clk 0:02:57]}  Nxd4 {[%clk 0:02:46]} 11. e5 {[%clk 0:02:57]}  Ne8 {[%clk 0:02:34]} 12. Bxd4 {[%clk 0:02:51]}  b6 {[%clk 0:02:30]} 13. h4 {[%clk 0:02:51]}  h5 {[%clk 0:02:28]} 14. g4 {[%clk 0:02:49]}  hxg4 {[%clk 0:02:26]} 15. h5 {[%clk 0:02:48]}  Bf5 {[%clk 0:02:06]} 16. h6 {[%clk 0:02:44]}  Bh8 {[%clk 0:02:06]} 17. h7+ {[%clk 0:02:45]}  Kg7 {[%clk 0:02:06]} 18. Qh6# {[%clk 0:02:45]} 1-0


[Site "https://www.chess.com"]